[Event "Early-Titled-Tuesday-Blitz-October-24-2023"]
[Site "Chess.com"]
[Date "2023.10.24"]
[Round "5"]
[White "LiadCuba"]
[Black "DonCiao"]
[Result "1-0"]
[WhiteElo "2367"]
[BlackElo "2125"]
[TimeControl "180+1"]
[EndTime "8:55:12 PDT"]
[Termination "LiadCuba won on time"]

1. d4 {[%clk 0:02:17.9]} 1... Nf6 {[%clk 0:02:58.6]} 2. c4 {[%clk 0:02:17.9]}
2... g6 {[%clk 0:02:58.5]} 3. Nc3 {[%clk 0:02:16.3]} 3... d5 {[%clk 0:02:58.5]}
4. cxd5 {[%clk 0:02:15.5]} 4... Nxd5 {[%clk 0:02:58.1]} 5. Bd2 {[%clk
0:02:16.1]} 5... Nf6 {[%clk 0:02:56.3]} 6. Bg5 {[%clk 0:02:13.5]} 6... Bg7
{[%clk 0:02:55.1]} 7. Nf3 {[%clk 0:02:12.6]} 7... c5 {[%clk 0:02:49.5]} 8. dxc5
{[%clk 0:02:07.4]} 8... Qa5 {[%clk 0:02:47.9]} 9. Be3 {[%clk 0:01:55.1]} 9...
O-O {[%clk 0:02:42.9]} 10. Nd2 {[%clk 0:01:52.6]} 10... Ng4 {[%clk 0:02:35]} 11.
Nb3 {[%clk 0:01:39.8]} 11... Qb4 {[%clk 0:01:55.4]} 12. Bd4 {[%clk 0:01:36.8]}
12... e5 {[%clk 0:01:54.3]} 13. a3 {[%clk 0:01:30.8]} 13... Qc4 {[%clk 0:01:33]}
14. e4 {[%clk 0:01:07.5]} 14... Qe6 {[%clk 0:01:32.2]} 15. Be3 {[%clk
0:01:08.1]} 15... Nxe3 {[%clk 0:01:31.1]} 16. fxe3 {[%clk 0:01:09]} 16... Nc6
{[%clk 0:01:26.9]} 17. Nd5 {[%clk 0:01:04.7]} 17... Qg4 {[%clk 0:01:16.9]} 18.
Qxg4 {[%clk 0:01:00.7]} 18... Bxg4 {[%clk 0:01:17.8]} 19. Be2 {[%clk 0:00:54.3]}
19... Bxe2 {[%clk 0:01:05.2]} 20. Kxe2 {[%clk 0:00:55.2]} 20... a5 {[%clk
0:01:00.9]} 21. Rac1 {[%clk 0:00:50.3]} 21... a4 {[%clk 0:00:59.9]} 22. Nd2
{[%clk 0:00:49]} 22... Ra5 {[%clk 0:00:57.7]} 23. Nb6 {[%clk 0:00:22]} 23... Rd8
{[%clk 0:00:52.9]} 24. Rc4 {[%clk 0:00:19.1]} 24... f5 {[%clk 0:00:47.1]} 25.
Nxa4 {[%clk 0:00:16.6]} 25... Bf8 {[%clk 0:00:38.2]} 26. Rhc1 {[%clk 0:00:11.2]}
26... Rb5 {[%clk 0:00:31.1]} 27. b4 {[%clk 0:00:10.2]} 27... Ra8 {[%clk
0:00:29.3]} 28. Nc3 {[%clk 0:00:09.8]} 28... Rba5 {[%clk 0:00:20.6]} 29. bxa5
{[%clk 0:00:09.6]} 29... Nxa5 {[%clk 0:00:19.1]} 30. Ra4 {[%clk 0:00:09.3]}
30... Bxc5 {[%clk 0:00:18.2]} 31. Nd5 {[%clk 0:00:08.8]} 31... Bd6 {[%clk
0:00:13.2]} 32. Nc4 {[%clk 0:00:08.5]} 32... b5 {[%clk 0:00:12.8]} 33. Rxa5
{[%clk 0:00:07.9]} 33... Rc8 {[%clk 0:00:09]} 34. Ndb6 {[%clk 0:00:05.8]} 34...
Rc6 {[%clk 0:00:06.9]} 35. Ra8+ {[%clk 0:00:05.4]} 35... Kg7 {[%clk 0:00:06.6]}
36. Ra7+ {[%clk 0:00:04.8]} 36... Kh6 {[%clk 0:00:05.7]} 37. Nxd6 {[%clk
0:00:04.6]} 37... Rxc1 {[%clk 0:00:04.6]} 38. exf5 {[%clk 0:00:05.5]} 38... gxf5
{[%clk 0:00:02.5]} 39. Nxf5+ {[%clk 0:00:06.4]} 39... Kg5 {[%clk 0:00:02.1]} 40.
Ng3 {[%clk 0:00:07.3]} 40... Rc2+ {[%clk 0:00:01.4]} 41. Kf3 {[%clk 0:00:07.9]}
1-0

[Event "Early-Titled-Tuesday-Blitz-October-24-2023"]
[Site "Chess.com"]
[Date "2023.10.24"]
[Round "5"]
[White "Nick12772"]
[Black "jraosam"]
[Result "1-0"]
[WhiteElo "2378"]
[BlackElo "2138"]
[TimeControl "180+1"]
[EndTime "8:55:14 PDT"]
[Termination "Nick12772 won on time"]

1. Nf3 {[%clk 0:03:00.9]} 1... Nf6 {[%clk 0:02:59.5]} 2. g3 {[%clk 0:03:01.5]}
2... g6 {[%clk 0:02:59.8]} 3. Bg2 {[%clk 0:03:02.1]} 3... Bg7 {[%clk 0:03:00.4]}
4. O-O {[%clk 0:03:01.9]} 4... O-O {[%clk 0:03:00.3]} 5. c4 {[%clk 0:03:02.6]}
5... d5 {[%clk 0:02:58.5]} 6. d4 {[%clk 0:03:01.8]} 6... dxc4 {[%clk 0:02:58.3]}
7. Ne5 {[%clk 0:02:56.8]} 7... Nc6 {[%clk 0:02:55.1]} 8. Nxc6 {[%clk 0:02:56.9]}
8... bxc6 {[%clk 0:02:55.7]} 9. Bxc6 {[%clk 0:02:57.8]} 9... Rb8 {[%clk
0:02:56.1]} 10. Bg2 {[%clk 0:02:54.6]} 10... Bb7 {[%clk 0:02:29.2]} 11. Bxb7
{[%clk 0:02:50.3]} 11... Rxb7 {[%clk 0:02:30.1]} 12. Na3 {[%clk 0:02:50.9]}
12... Qd5 {[%clk 0:02:24.6]} 13. e3 {[%clk 0:02:31]} 13... c5 {[%clk 0:02:10.9]}
14. dxc5 {[%clk 0:02:25.7]} 14... Qxc5 {[%clk 0:02:09.9]} 15. Qc2 {[%clk
0:02:21.7]} 15... Rc8 {[%clk 0:02:06.8]} 16. Bd2 {[%clk 0:02:22]} 16... Nd5
{[%clk 0:01:59.3]} 17. Rab1 {[%clk 0:02:11.2]} 17... c3 {[%clk 0:01:51.3]} 18.
bxc3 {[%clk 0:02:03.9]} 18... Rd7 {[%clk 0:01:20.5]} 19. Nb5 {[%clk 0:01:45.6]}
19... a6 {[%clk 0:01:17.1]} 20. Nd4 {[%clk 0:01:45.5]} 20... Bxd4 {[%clk
0:01:01.5]} 21. exd4 {[%clk 0:01:42.2]} 21... Qxd4 {[%clk 0:01:01.7]} 22. Qxg6+
{[%clk 0:01:17.5]} 22... hxg6 {[%clk 0:00:56.9]} 23. cxd4 {[%clk 0:01:18.4]}
23... Rc2 {[%clk 0:00:56.6]} 24. Be3 {[%clk 0:01:10.6]} 24... Rxa2 {[%clk
0:00:55.8]} 25. Ra1 {[%clk 0:01:10.8]} 25... Rxa1 {[%clk 0:00:15.7]} 26. Rxa1
{[%clk 0:01:11.7]} 26... Rd6 {[%clk 0:00:16.2]} 27. Ra5 {[%clk 0:01:08.1]} 27...
e6 {[%clk 0:00:16]} 28. h4 {[%clk 0:01:04.4]} 28... Kf8 {[%clk 0:00:15.9]} 29.
Bg5 {[%clk 0:01:02.2]} 29... Ke8 {[%clk 0:00:15.7]} 30. g4 {[%clk 0:00:56.6]}
30... Kd7 {[%clk 0:00:14.6]} 31. h5 {[%clk 0:00:54.1]} 31... gxh5 {[%clk
0:00:14.1]} 32. gxh5 {[%clk 0:00:55]} 32... Kc7 {[%clk 0:00:10.4]} 33. h6 {[%clk
0:00:52.8]} 33... f6 {[%clk 0:00:06.2]} 34. Rc5+ {[%clk 0:00:38.7]} 34... Kb6
{[%clk 0:00:02.9]} 35. Bd2 {[%clk 0:00:27.8]} 35... Rd7 {[%clk 0:00:02.4]} 36.
Rc8 {[%clk 0:00:23]} 36... Rh7 {[%clk 0:00:02.3]} 37. Rg8 {[%clk 0:00:20.6]}
37... Kc6 {[%clk 0:00:01.7]} 38. Rg7 {[%clk 0:00:20.4]} 38... Rh8 {[%clk
0:00:01.7]} 39. h7 {[%clk 0:00:18.6]} 39... Kd6 {[%clk 0:00:01.2]} 40. Ra7
{[%clk 0:00:17.5]} 1-0

[Event "Early-Titled-Tuesday-Blitz-October-24-2023"]
[Site "Chess.com"]
[Date "2023.10.24"]
[Round "5"]
[White "Laico"]
[Black "pankajfm"]
[Result "1-0"]
[WhiteElo "2391"]
[BlackElo "2162"]
[TimeControl "180+1"]
[EndTime "8:55:14 PDT"]
[Termination "Laico won by resignation"]

1. e4 {[%clk 0:02:56.8]} 1... c5 {[%clk 0:02:59.7]} 2. Nc3 {[%clk 0:02:57.4]}
2... Nc6 {[%clk 0:02:58.8]} 3. f4 {[%clk 0:02:58.1]} 3... g5 {[%clk 0:02:57.9]}
4. Nf3 {[%clk 0:02:58.8]} 4... gxf4 {[%clk 0:02:58]} 5. d4 {[%clk 0:02:59]} 5...
cxd4 {[%clk 0:02:57.5]} 6. Nxd4 {[%clk 0:02:59.7]} 6... Bg7 {[%clk 0:02:55.8]}
7. Nxc6 {[%clk 0:02:58.9]} 7... bxc6 {[%clk 0:02:56.7]} 8. Bxf4 {[%clk
0:02:59.2]} 8... Qa5 {[%clk 0:02:55.6]} 9. Qf3 {[%clk 0:02:57.7]} 9... Nf6
{[%clk 0:02:48.4]} 10. Bd3 {[%clk 0:02:56.6]} 10... d6 {[%clk 0:02:44.7]} 11.
O-O {[%clk 0:02:56.5]} 11... Rg8 {[%clk 0:02:38.8]} 12. Kh1 {[%clk 0:02:49.3]}
12... Bg4 {[%clk 0:02:36.3]} 13. Qe3 {[%clk 0:02:47.8]} 13... Qh5 {[%clk
0:02:29.3]} 14. e5 {[%clk 0:02:45.3]} 14... dxe5 {[%clk 0:02:17.6]} 15. Qxe5
{[%clk 0:02:46.2]} 15... Qxe5 {[%clk 0:02:15.5]} 16. Bxe5 {[%clk 0:02:46.1]}
16... h6 {[%clk 0:02:02.9]} 17. Rae1 {[%clk 0:02:45.7]} 17... Nd5 {[%clk
0:01:59.6]} 18. Nxd5 {[%clk 0:02:30.1]} 18... cxd5 {[%clk 0:01:58.1]} 19. Bb5+
{[%clk 0:02:30.8]} 19... Kf8 {[%clk 0:01:49.4]} 20. h3 {[%clk 0:02:05.5]} 20...
Be6 {[%clk 0:01:34.9]} 21. Bd3 {[%clk 0:00:59.5]} 21... Bxe5 {[%clk 0:01:31]}
22. Rxe5 {[%clk 0:01:00.4]} 22... Kg7 {[%clk 0:01:31.5]} 23. Bf5 {[%clk
0:00:57.6]} 23... Bxf5 {[%clk 0:01:30.6]} 24. Rexf5 {[%clk 0:00:51.5]} 24... f6
{[%clk 0:01:24.2]} 25. Rxd5 {[%clk 0:00:50.9]} 25... Rgc8 {[%clk 0:01:18.3]} 26.
Rf2 {[%clk 0:00:37.5]} 26... Rab8 {[%clk 0:01:16.8]} 27. c3 {[%clk 0:00:32]}
27... Rb7 {[%clk 0:01:10]} 28. Rfd2 {[%clk 0:00:31]} 28... Rcc7 {[%clk 0:01:06]}
29. Kg1 {[%clk 0:00:30.8]} 29... Kf7 {[%clk 0:01:03.7]} 30. Kf2 {[%clk
0:00:31.1]} 30... e6 {[%clk 0:01:03.4]} 31. Rd8 {[%clk 0:00:29.7]} 31... Ke7
{[%clk 0:00:58]} 32. Rh8 {[%clk 0:00:27.9]} 32... Rd7 {[%clk 0:00:51.4]} 33.
Rh7+ {[%clk 0:00:24.9]} 33... Kd8 {[%clk 0:00:44.5]} 34. Rdxd7+ {[%clk
0:00:25.2]} 34... Rxd7 {[%clk 0:00:45.4]} 35. Rxd7+ {[%clk 0:00:25.2]} 35...
Kxd7 {[%clk 0:00:46.3]} 36. Ke3 {[%clk 0:00:21.7]} 36... Kd6 {[%clk 0:00:46.6]}
37. g4 {[%clk 0:00:21.4]} 37... Ke5 {[%clk 0:00:46.4]} 38. c4 {[%clk 0:00:19.6]}
38... Kd6 {[%clk 0:00:44.8]} 39. b4 {[%clk 0:00:18.8]} 39... Kc6 {[%clk
0:00:42.1]} 40. Kd4 {[%clk 0:00:16.6]} 40... Kd6 {[%clk 0:00:41.6]} 41. a4
{[%clk 0:00:15.4]} 41... Kc6 {[%clk 0:00:41.8]} 42. b5+ {[%clk 0:00:14.3]} 42...
Kd6 {[%clk 0:00:38.4]} 43. c5+ {[%clk 0:00:14.5]} 43... Kc7 {[%clk 0:00:38.1]}
44. a5 {[%clk 0:00:14.7]} 44... Kb7 {[%clk 0:00:34.9]} 45. c6+ {[%clk
0:00:13.9]} 45... Kc7 {[%clk 0:00:34.4]} 46. Kc5 {[%clk 0:00:14.5]} 46... f5
{[%clk 0:00:26.9]} 47. b6+ {[%clk 0:00:15.4]} 47... axb6+ {[%clk 0:00:26.4]} 48.
axb6+ {[%clk 0:00:15.3]} 48... Kc8 {[%clk 0:00:26.1]} 49. gxf5 {[%clk
0:00:16.2]} 49... exf5 {[%clk 0:00:26.4]} 50. Kd5 {[%clk 0:00:16.8]} 1-0

[Event "Early-Titled-Tuesday-Blitz-October-24-2023"]
[Site "Chess.com"]
[Date "2023.10.24"]
[Round "5"]
[White "RobertoJBM"]
[Black "ATM622"]
[Result "0-1"]
[WhiteElo "2764"]
[BlackElo "2419"]
[TimeControl "180+1"]
[EndTime "8:55:16 PDT"]
[Termination "ATM622 won on time"]

1. d4 {[%clk 0:03:00.9]} 1... Nf6 {[%clk 0:02:56.1]} 2. Nf3 {[%clk 0:03:00.7]}
2... e6 {[%clk 0:02:56.1]} 3. e3 {[%clk 0:03:01.6]} 3... d5 {[%clk 0:02:55.9]}
4. Bd3 {[%clk 0:03:02.5]} 4... Be7 {[%clk 0:02:55.8]} 5. O-O {[%clk 0:03:02.5]}
5... O-O {[%clk 0:02:55.9]} 6. Nbd2 {[%clk 0:03:02.6]} 6... Nbd7 {[%clk
0:02:56.3]} 7. e4 {[%clk 0:03:02.4]} 7... dxe4 {[%clk 0:02:56.2]} 8. Nxe4 {[%clk
0:03:03.3]} 8... Nxe4 {[%clk 0:02:56.7]} 9. Bxe4 {[%clk 0:03:04]} 9... Nf6
{[%clk 0:02:57.1]} 10. Bd3 {[%clk 0:03:04.2]} 10... c5 {[%clk 0:02:57.5]} 11.
dxc5 {[%clk 0:03:03.7]} 11... Bxc5 {[%clk 0:02:57.3]} 12. Qe2 {[%clk 0:03:03.6]}
12... h6 {[%clk 0:02:56.6]} 13. Bf4 {[%clk 0:03:01.4]} 13... Qe7 {[%clk
0:02:52.9]} 14. a3 {[%clk 0:02:58]} 14... b6 {[%clk 0:02:45.2]} 15. Rad1 {[%clk
0:02:53.9]} 15... Nd5 {[%clk 0:02:40.4]} 16. Bg3 {[%clk 0:02:51]} 16... Bb7
{[%clk 0:02:39.7]} 17. c4 {[%clk 0:02:47.4]} 17... f5 {[%clk 0:02:22.6]} 18. Be5
{[%clk 0:02:29.5]} 18... Nf6 {[%clk 0:02:09.7]} 19. b4 {[%clk 0:02:28.5]} 19...
Bd6 {[%clk 0:02:05.3]} 20. Bxd6 {[%clk 0:02:21.9]} 20... Qxd6 {[%clk 0:02:06.2]}
21. Bxf5 {[%clk 0:02:18.8]} 21... Qf4 {[%clk 0:02:05.6]} 22. Bxe6+ {[%clk
0:02:10.8]} 22... Kh7 {[%clk 0:02:03.3]} 23. Bd5 {[%clk 0:01:57.4]} 23... Nxd5
{[%clk 0:01:40.8]} 24. cxd5 {[%clk 0:01:58.3]} 24... Rad8 {[%clk 0:01:40.3]} 25.
Rd4 {[%clk 0:01:54.3]} 25... Qf6 {[%clk 0:01:38.2]} 26. Rfd1 {[%clk 0:01:51.4]}
26... Rfe8 {[%clk 0:01:34.2]} 27. Qd3+ {[%clk 0:01:47.9]} 27... Kh8 {[%clk
0:01:34.3]} 28. h3 {[%clk 0:01:41.7]} 28... Rd6 {[%clk 0:01:26.2]} 29. Nh2
{[%clk 0:01:14]} 29... Red8 {[%clk 0:01:09.1]} 30. Ng4 {[%clk 0:01:13.4]} 30...
Qg5 {[%clk 0:01:08.5]} 31. Ne3 {[%clk 0:01:10]} 31... Rf8 {[%clk 0:01:02.6]} 32.
Qe4 {[%clk 0:00:57.2]} 32... Rg6 {[%clk 0:00:56.4]} 33. Qg4 {[%clk 0:00:52.7]}
33... Qf6 {[%clk 0:00:55.2]} 34. Qh4 {[%clk 0:00:51.1]} 34... Qf3 {[%clk
0:00:46.5]} 35. Rg4 {[%clk 0:00:36.9]} 35... Rxg4 {[%clk 0:00:34.9]} 36. hxg4
{[%clk 0:00:37.8]} 36... Qf4 {[%clk 0:00:32.1]} 37. Rd2 {[%clk 0:00:20.6]} 37...
Bc8 {[%clk 0:00:29.2]} 38. Qg3 {[%clk 0:00:19.3]} 38... Qe4 {[%clk 0:00:28.7]}
39. d6 {[%clk 0:00:13.4]} 39... Bd7 {[%clk 0:00:27.7]} 40. Kh2 {[%clk
0:00:13.4]} 40... Rf4 {[%clk 0:00:19.8]} 41. Rc2 {[%clk 0:00:03.6]} 41... Qe5
{[%clk 0:00:19]} 42. Rc4 {[%clk 0:00:03]} 42... g5 {[%clk 0:00:14]} 0-1

[Event "Early-Titled-Tuesday-Blitz-October-24-2023"]
[Site "Chess.com"]
[Date "2023.10.24"]
[Round "5"]
[White "LeoLV10"]
[Black "FlemingA"]
[Result "0-1"]
[WhiteElo "2568"]
[BlackElo "2452"]
[TimeControl "180+1"]
[EndTime "8:55:17 PDT"]
[Termination "FlemingA won by checkmate"]

1. e4 {[%clk 0:03:00.9]} 1... c6 {[%clk 0:02:58.2]} 2. d4 {[%clk 0:03:00.9]}
2... d5 {[%clk 0:02:57.9]} 3. e5 {[%clk 0:03:01.8]} 3... a6 {[%clk 0:02:57.5]}
4. Nf3 {[%clk 0:02:46.4]} 4... Bf5 {[%clk 0:02:54.1]} 5. h4 {[%clk 0:02:45.9]}
5... e6 {[%clk 0:02:50.7]} 6. Bd3 {[%clk 0:02:43.1]} 6... Bxd3 {[%clk
0:02:49.6]} 7. Qxd3 {[%clk 0:02:44]} 7... c5 {[%clk 0:02:48.2]} 8. c3 {[%clk
0:02:43.8]} 8... Nc6 {[%clk 0:02:48.5]} 9. Bg5 {[%clk 0:02:37.7]} 9... Qb6
{[%clk 0:02:42.3]} 10. Nbd2 {[%clk 0:02:36.5]} 10... h6 {[%clk 0:02:35.3]} 11.
Be3 {[%clk 0:02:30.2]} 11... c4 {[%clk 0:02:33.6]} 12. Qc2 {[%clk 0:02:29.8]}
12... Nge7 {[%clk 0:02:33.6]} 13. g4 {[%clk 0:02:27.8]} 13... h5 {[%clk
0:02:21.9]} 14. gxh5 {[%clk 0:02:22.3]} 14... Nf5 {[%clk 0:02:21.8]} 15. b3
{[%clk 0:02:20.8]} 15... cxb3 {[%clk 0:02:19.5]} 16. axb3 {[%clk 0:02:20.4]}
16... Rxh5 {[%clk 0:02:13.6]} 17. Qd3 {[%clk 0:02:12.1]} 17... Rc8 {[%clk
0:02:09.2]} 18. Ke2 {[%clk 0:02:10.9]} 18... Be7 {[%clk 0:02:06.6]} 19. Rab1
{[%clk 0:01:48.6]} 19... Qb5 {[%clk 0:01:52.9]} 20. c4 {[%clk 0:01:47]} 20...
Qb6 {[%clk 0:01:37.6]} 21. Qc3 {[%clk 0:00:49.2]} 21... Bb4 {[%clk 0:01:34.7]}
22. Qd3 {[%clk 0:00:47.2]} 22... Bxd2 {[%clk 0:01:31.9]} 23. Qxd2 {[%clk
0:00:48.1]} 23... Qb4 {[%clk 0:01:11.8]} 24. Qd3 {[%clk 0:00:46.5]} 24... Qb6
{[%clk 0:01:10.8]} 25. Rhc1 {[%clk 0:00:30.1]} 25... Nb4 {[%clk 0:01:06.9]} 26.
Qd2 {[%clk 0:00:28.8]} 26... Nxh4 {[%clk 0:00:57.8]} 27. Nxh4 {[%clk 0:00:27.5]}
27... Rxh4 {[%clk 0:00:57.6]} 28. cxd5 {[%clk 0:00:26.6]} 28... Rxc1 {[%clk
0:00:54.3]} 29. Rxc1 {[%clk 0:00:23.9]} 29... Nxd5 {[%clk 0:00:54.4]} 30. Bg5
{[%clk 0:00:20.6]} 30... Rxd4 {[%clk 0:00:45.8]} 31. Qc2 {[%clk 0:00:19]} 31...
Qc6 {[%clk 0:00:32.7]} 32. Qb2 {[%clk 0:00:12.3]} 32... Qb5+ {[%clk 0:00:17.5]}
33. Ke1 {[%clk 0:00:10.1]} 33... Qb4+ {[%clk 0:00:16.2]} 34. Kf1 {[%clk
0:00:10.5]} 34... Qb5+ {[%clk 0:00:16.1]} 35. Ke1 {[%clk 0:00:09.4]} 35... Qb4+
{[%clk 0:00:16.5]} 36. Ke2 {[%clk 0:00:09.8]} 36... Qb5+ {[%clk 0:00:15.2]} 37.
Kf3 {[%clk 0:00:04.8]} 37... Qd3+ {[%clk 0:00:13.9]} 38. Be3 {[%clk 0:00:04.6]}
38... Qf5+ {[%clk 0:00:11.1]} 39. Ke2 {[%clk 0:00:04.8]} 39... Qd3+ {[%clk
0:00:11.1]} 40. Ke1 {[%clk 0:00:04.1]} 40... Nxe3 {[%clk 0:00:10.9]} 41. fxe3
{[%clk 0:00:02]} 41... Qxe3+ {[%clk 0:00:11.3]} 42. Kf1 {[%clk 0:00:02.3]} 42...
Rf4+ {[%clk 0:00:11.6]} 43. Kg2 {[%clk 0:00:01.7]} 43... Qf3+ {[%clk 0:00:12]}
44. Kh2 {[%clk 0:00:02.1]} 44... Rh4+ {[%clk 0:00:12.2]} 45. Kg1 {[%clk
0:00:02.7]} 45... Rh1# {[%clk 0:00:12.5]} 0-1

[Event "Early-Titled-Tuesday-Blitz-October-24-2023"]
[Site "Chess.com"]
[Date "2023.10.24"]
[Round "5"]
[White "MaxLeto"]
[Black "ideika"]
[Result "1-0"]
[WhiteElo "2561"]
[BlackElo "2352"]
[TimeControl "180+1"]
[EndTime "8:55:20 PDT"]
[Termination "MaxLeto won by checkmate"]

1. g4 {[%clk 0:02:58.6]} 1... h5 {[%clk 0:02:59.3]} 2. g5 {[%clk 0:02:58.1]}
2... h4 {[%clk 0:02:58.3]} 3. d4 {[%clk 0:02:57.6]} 3... d5 {[%clk 0:02:56.2]}
4. c4 {[%clk 0:02:55.5]} 4... c6 {[%clk 0:02:54.1]} 5. Nc3 {[%clk 0:02:55.4]}
5... g6 {[%clk 0:02:45.9]} 6. Bf4 {[%clk 0:02:49.9]} 6... Bf5 {[%clk 0:02:35]}
7. Qb3 {[%clk 0:02:38.1]} 7... Qc8 {[%clk 0:02:30.5]} 8. cxd5 {[%clk 0:02:34.5]}
8... Bg7 {[%clk 0:02:10.5]} 9. e4 {[%clk 0:02:31.7]} 9... Bg4 {[%clk 0:01:06.6]}
10. f3 {[%clk 0:02:29.8]} 10... Bd7 {[%clk 0:01:02.7]} 11. Nge2 {[%clk 0:02:19]}
11... b6 {[%clk 0:01:03.1]} 12. O-O-O {[%clk 0:01:54.7]} 12... cxd5 {[%clk
0:00:50.3]} 13. Qxd5 {[%clk 0:01:55.6]} 13... Qc6 {[%clk 0:00:41.3]} 14. Kb1
{[%clk 0:01:51.1]} 14... e6 {[%clk 0:00:38]} 15. Qxc6 {[%clk 0:01:32.1]} 15...
Nxc6 {[%clk 0:00:38.8]} 16. Nb5 {[%clk 0:01:23.6]} 16... Kf8 {[%clk 0:00:39.2]}
17. Nec3 {[%clk 0:00:41.4]} 17... Nge7 {[%clk 0:00:39]} 18. d5 {[%clk
0:00:23.4]} 18... exd5 {[%clk 0:00:36.2]} 19. exd5 {[%clk 0:00:16.3]} 19... Ne5
{[%clk 0:00:35.1]} 20. Be2 {[%clk 0:00:09.3]} 20... a6 {[%clk 0:00:32.8]} 21.
Nd6 {[%clk 0:00:08.1]} 21... Nf5 {[%clk 0:00:28.6]} 22. Nde4 {[%clk 0:00:06.3]}
22... Rc8 {[%clk 0:00:25.6]} 23. Nf6 {[%clk 0:00:04.4]} 23... Bxf6 {[%clk
0:00:24]} 24. gxf6 {[%clk 0:00:05.3]} 24... Nc4 {[%clk 0:00:22.9]} 25. Rhe1
{[%clk 0:00:03.6]} 25... Nce3 {[%clk 0:00:22.5]} 26. Rd3 {[%clk 0:00:03.7]}
26... Nc4 {[%clk 0:00:21.3]} 27. Bd1 {[%clk 0:00:03.5]} 27... Bb5 {[%clk
0:00:20.4]} 28. Rd2 {[%clk 0:00:02.9]} 28... Kg8 {[%clk 0:00:19.4]} 29. Rg2
{[%clk 0:00:02.5]} 29... Kh7 {[%clk 0:00:19.6]} 30. Reg1 {[%clk 0:00:02.5]}
30... Rhe8 {[%clk 0:00:19.4]} 31. Bc2 {[%clk 0:00:03]} 31... Nce3 {[%clk
0:00:18.3]} 32. Bxe3 {[%clk 0:00:03]} 32... Nxe3 {[%clk 0:00:18.1]} 33. Rg4
{[%clk 0:00:02.6]} 33... Nxc2 {[%clk 0:00:18]} 34. Rxh4+ {[%clk 0:00:02.8]}
34... Kg8 {[%clk 0:00:18.1]} 35. Kxc2 {[%clk 0:00:03.7]} 35... Re2+ {[%clk
0:00:16.8]} 36. Kb3 {[%clk 0:00:02.8]} 36... Re3 {[%clk 0:00:15.6]} 37. Rg3
{[%clk 0:00:02.9]} 37... Bc4+ {[%clk 0:00:15.5]} 38. Kc2 {[%clk 0:00:03]} 38...
Bxa2 {[%clk 0:00:13.9]} 39. Rgh3 {[%clk 0:00:03.2]} 39... Re2+ {[%clk
0:00:13.7]} 40. Kd1 {[%clk 0:00:03.3]} 40... Bc4 {[%clk 0:00:09.2]} 41. Rh8#
{[%clk 0:00:04.2]} 1-0

[Event "Early-Titled-Tuesday-Blitz-October-24-2023"]
[Site "Chess.com"]
[Date "2023.10.24"]
[Round "5"]
[White "Beca95"]
[Black "AlexPapasimakopoulos"]
[Result "1/2-1/2"]
[WhiteElo "2926"]
[BlackElo "2678"]
[TimeControl "180+1"]
[EndTime "8:55:21 PDT"]
[Termination "Game drawn by agreement"]

1. d4 {[%clk 0:03:00.9]} 1... d5 {[%clk 0:02:55.3]} 2. c4 {[%clk 0:03:00.8]}
2... e6 {[%clk 0:02:55.8]} 3. Nc3 {[%clk 0:03:01]} 3... a6 {[%clk 0:02:56.2]} 4.
cxd5 {[%clk 0:03:00.2]} 4... exd5 {[%clk 0:02:57.1]} 5. Nf3 {[%clk 0:03:00.3]}
5... c6 {[%clk 0:02:57.5]} 6. Bf4 {[%clk 0:02:59.6]} 6... Bd6 {[%clk 0:02:58.1]}
7. Be5 {[%clk 0:02:44.2]} 7... Bxe5 {[%clk 0:02:46.2]} 8. Nxe5 {[%clk
0:02:45.1]} 8... Nd7 {[%clk 0:02:45.2]} 9. Nf3 {[%clk 0:02:36.9]} 9... Ngf6
{[%clk 0:02:44.7]} 10. e3 {[%clk 0:02:37.1]} 10... O-O {[%clk 0:02:43.2]} 11.
Bd3 {[%clk 0:02:37.3]} 11... Re8 {[%clk 0:02:43.6]} 12. Qc2 {[%clk 0:02:37.4]}
12... c5 {[%clk 0:02:34.8]} 13. dxc5 {[%clk 0:02:35]} 13... Nxc5 {[%clk
0:02:35.7]} 14. O-O {[%clk 0:02:34.8]} 14... Bg4 {[%clk 0:02:32.4]} 15. Nd4
{[%clk 0:02:34.9]} 15... Rc8 {[%clk 0:02:31.5]} 16. Rac1 {[%clk 0:02:32.8]}
16... Bh5 {[%clk 0:02:31.5]} 17. Bf5 {[%clk 0:02:24.1]} 17... Bg6 {[%clk
0:02:31]} 18. Bxg6 {[%clk 0:02:21.7]} 18... hxg6 {[%clk 0:02:30.9]} 19. Rfd1
{[%clk 0:02:21.8]} 19... Nce4 {[%clk 0:02:30.1]} 20. Qb3 {[%clk 0:02:18]} 20...
Nxc3 {[%clk 0:02:29.5]} 21. Rxc3 {[%clk 0:02:18.9]} 21... Rxc3 {[%clk
0:02:29.3]} 22. Qxc3 {[%clk 0:02:19.8]} 22... Ne4 {[%clk 0:02:24.2]} 23. Qc2
{[%clk 0:02:19.6]} 23... Qf6 {[%clk 0:02:19.9]} 24. Nf3 {[%clk 0:02:09.7]} 24...
Qc6 {[%clk 0:02:19.3]} 25. Nd4 {[%clk 0:02:01.8]} 25... Qxc2 {[%clk 0:02:11.6]}
26. Nxc2 {[%clk 0:02:02.7]} 26... Rc8 {[%clk 0:02:11.4]} 27. Nd4 {[%clk
0:01:59.5]} 27... Kf8 {[%clk 0:02:09.5]} 28. f3 {[%clk 0:01:59.6]} 28... Nd6
{[%clk 0:02:04.8]} 29. Kf2 {[%clk 0:01:48.6]} 29... Ke7 {[%clk 0:02:02.7]} 30.
Rd2 {[%clk 0:01:47]} 30... g5 {[%clk 0:01:58]} 31. b3 {[%clk 0:01:46.8]} 31...
g6 {[%clk 0:01:51.1]} 32. h3 {[%clk 0:01:47.2]} 32... Rc5 {[%clk 0:01:42.6]} 33.
Ke2 {[%clk 0:01:47.1]} 33... a5 {[%clk 0:01:26]} 34. a4 {[%clk 0:01:44.6]} 34...
b6 {[%clk 0:01:23.5]} 35. Kd3 {[%clk 0:01:43.3]} 35... Nf5 {[%clk 0:01:16]} 36.
Ne2 {[%clk 0:01:34.6]} 36... Ke6 {[%clk 0:01:12.2]} 37. g4 {[%clk 0:01:27.5]}
37... Nh4 {[%clk 0:01:08.2]} 38. Nd4+ {[%clk 0:01:27.6]} 38... Kd6 {[%clk
0:01:05.4]} 39. Rd1 {[%clk 0:01:28]} 39... Rc8 {[%clk 0:01:03.2]} 40. Rg1 {[%clk
0:01:25.6]} 40... Kd7 {[%clk 0:00:59.1]} 41. Kd2 {[%clk 0:01:24.7]} 41... Kd6
{[%clk 0:00:58.9]} 42. Rf1 {[%clk 0:01:18.4]} 42... f5 {[%clk 0:00:54.5]} 43.
Rg1 {[%clk 0:01:14.4]} 43... Ke5 {[%clk 0:00:54]} 44. gxf5 {[%clk 0:01:13.5]}
44... Nxf5 {[%clk 0:00:48.5]} 45. Rxg5 {[%clk 0:01:13.2]} 45... Kf6 {[%clk
0:00:48.8]} 46. Rg4 {[%clk 0:01:13.1]} 46... Rh8 {[%clk 0:00:47.3]} 47. Nxf5
{[%clk 0:01:06.7]} 47... gxf5 {[%clk 0:00:48.2]} 48. Rd4 {[%clk 0:01:07]} 48...
Ke6 {[%clk 0:00:35.1]} 49. h4 {[%clk 0:01:07.3]} 49... Rg8 {[%clk 0:00:33.4]}
50. e4 {[%clk 0:00:59.3]} 50... dxe4 {[%clk 0:00:29.7]} 51. fxe4 {[%clk
0:01:00.2]} 51... f4 {[%clk 0:00:27.7]} 52. Rd5 {[%clk 0:00:58.3]} 52... Rg2+
{[%clk 0:00:27.1]} 53. Kd3 {[%clk 0:00:57]} 53... Rg3+ {[%clk 0:00:26.4]} 54.
Kc2 {[%clk 0:00:29.1]} 54... Re3 {[%clk 0:00:20.7]} 55. Rb5 {[%clk 0:00:28.2]}
55... f3 {[%clk 0:00:20.5]} 56. Rf5 {[%clk 0:00:26.5]} 56... Rxe4 {[%clk
0:00:19]} 57. Rxf3 {[%clk 0:00:26.5]} 57... Rxh4 {[%clk 0:00:19.6]} 1/2-1/2